fUSD/lending_fUSD_20241112
["ID","MTS","AMOUNT","RATE_DAILY","PERIOD"]
[342066712,1731397875191,-1179.65,0.00014998,2]
[342066713,1731397875201,-1179.65,0.00014998,2]
[342066714,1731397875211,-667.69,0.00014998,2]
[342066715,1731397875220,-667.69,0.00014998,2]
[342066716,1731397875230,-622.72,0.00014998,2]
[342066717,1731397875240,-667.69,0.00014998,2]
[342066718,1731397875249,-622.72,0.00014998,2]
[342066719,1731397875260,-667.69,0.00014998,2]
[342066720,1731397875272,-622.72,0.00014998,2]
[342066721,1731397875281,-667.81,0.00014998,2]
[342066722,1731397875291,-500.0,0.00014998,2]
[342066723,1731397875301,-500.0,0.00014998,2]
[342066724,1731397875311,-500.0,0.00014998,2]
[342066725,1731397875321,-645.83,0.00014998,2]
[342066726,1731397875330,-645.83,0.00014998,2]
[342066727,1731397875342,-645.83,0.00014998,2]
[342066728,1731397875351,-645.83,0.00014998,2]
[342066729,1731397875363,-645.88420326,0.00014998,2]
[342066730,1731397875372,-500.0,0.00014999,2]
[342066731,1731397875382,-5800.0,0.00014999,2]
[342066732,1731397875391,-3471.43089877,0.00014999,2]
[342066733,1731397875401,-231397.52467141,0.00014999,2]
[342066734,1731397875410,-1000.0,0.00014999,2]
[342066735,1731397875420,-1000.0,0.00014999,2]
[342066736,1731397875429,-748.2116,0.00014999,2]
[342066737,1731397875438,-29769.19151637,0.00014999,2]
[342066738,1731397875447,-105042.58065051,0.00014999,2]
[342066739,1731397875456,-500.0,0.00014999,2]
[342066740,1731397875465,-500.0,0.00014999,2]
[342066741,1731397875474,-500.0,0.00014999,2]
[342066742,1731397875483,-436.3822373,0.00014999,2]
[342066743,1731397875494,-500.0,0.00014999,2]
[342066744,1731397875503,-500.0,0.00014999,2]
[342066745,1731397875513,-500.0,0.00014999,2]
[342066746,1731397875522,-500.0,0.00014999,2]
[342066747,1731397875532,-500.0,0.00014999,2]
[342066748,1731397875541,-500.0,0.00014999,2]
[342066749,1731397875550,-500.0,0.00014999,2]
[342066750,1731397875559,-500.0,0.00014999,2]
[342066751,1731397875569,-500.0,0.00014999,2]
[342066752,1731397875579,-500.0,0.00014999,2]
[342066753,1731397875588,-500.0,0.00014999,2]
[342066754,1731397875597,-500.0,0.00014999,2]
[342066755,1731397875606,-500.0,0.00014999,2]
[342066756,1731397875616,-500.0,0.00014999,2]
[342066757,1731397875625,-500.0,0.00014999,2]
[342066758,1731397875635,-557.44479763,0.00014999,2]
[342066759,1731397875644,-500.0,0.00014999,2]
[342066760,1731397875653,-378.22940862,0.00014999,2]
[342066761,1731397875662,-1442.62,0.00014999,2]
[342066762,1731397875671,-1442.62,0.00014999,2]
[342066763,1731397875679,-1442.62,0.00014999,2]
[342066764,1731397875689,-1442.62,0.00014999,2]
[342066765,1731397875698,-1442.62,0.00014999,2]
[342066766,1731397875707,-1442.62,0.00014999,2]
[342066767,1731397875716,-1442.62,0.00014999,2]
[342066768,1731397875725,-1442.62,0.00014999,2]
[342066769,1731397875734,-1442.62,0.00014999,2]
[342066770,1731397875743,-1442.62,0.00014999,2]
[342066771,1731397875753,-1442.80138178,0.00014999,2]
[342066772,1731397875762,-2728.17,0.00014999,2]
[342066773,1731397875770,-2728.17,0.00014999,2]
[342066774,1731397875779,-2728.17,0.00014999,2]
[342066775,1731397875788,-2728.17,0.00014999,2]
[342066776,1731397875797,-2728.17,0.00014999,2]
[342066777,1731397875806,-2728.17,0.00014999,2]
[342066778,1731397875815,-2728.17,0.00014999,2]
[342066779,1731397875824,-2728.17,0.00014999,2]
[342066780,1731397875833,-2728.17,0.00014999,2]
[342066781,1731397875842,-2728.17,0.00014999,2]
[342066782,1731397875851,-2728.28494239,0.00014999,2]
[342066783,1731397875861,-982.85,0.00014999,2]
[342066784,1731397875870,-982.85,0.00014999,2]
[342066785,1731397875879,-982.85,0.00014999,2]
[342066786,1731397875889,-982.85,0.00014999,2]
[342066787,1731397875898,-982.85,0.00014999,2]
[342066788,1731397875907,-982.85,0.00014999,2]
[342066789,1731397875915,-982.85,0.00014999,2]
[342066790,1731397875925,-982.85,0.00014999,2]
[342066791,1731397875934,-982.85,0.00014999,2]
[342066792,1731397875943,-982.85,0.00014999,2]
[342066793,1731397875953,-982.96541674,0.00014999,2]
[342066794,1731397875962,-1447.02,0.00014999,2]
[342066795,1731397875971,-1447.02,0.00014999,2]
[342066796,1731397875980,-1447.02,0.00014999,2]
[342066797,1731397875990,-1447.02,0.00014999,2]
[342066798,1731397875999,-1447.02,0.00014999,2]
[342066799,1731397876008,-1447.02,0.00014999,2]
[342066800,1731397876017,-1447.02,0.00014999,2]
[342066801,1731397876027,-1447.02,0.00014999,2]
[342066802,1731397876036,-1447.02,0.00014999,2]
[342066803,1731397876045,-1447.02,0.00014999,2]
[342066804,1731397876055,-1447.06709952,0.00014999,2]
[342066805,1731397876064,-500.0,0.00014999,2]
[342066806,1731397876074,-500.0,0.00014999,2]
[342066807,1731397876083,-500.0,0.00014999,2]
[342066808,1731397876093,-499.9998091,0.00014999,2]
[342066809,1731397876102,-5244.09,0.00014999,2]
[342066810,1731397876113,-5244.09,0.00014999,2]
[342066811,1731397876122,-5244.09,0.00014999,2]
[342066812,1731397876132,-5244.09,0.00014999,2]
[342066813,1731397876141,-5244.09,0.00014999,2]
[342066814,1731397876151,-5244.09,0.00014999,2]
[342066815,1731397876160,-5244.09,0.00014999,2]
[342066816,1731397876170,-5244.09,0.00014999,2]
[342066817,1731397876179,-5244.09,0.00014999,2]
[342066818,1731397876188,-5244.09,0.00014999,2]
[342066819,1731397876197,-5244.09,0.00014999,2]
[342066820,1731397876206,-2649.32,0.00014999,2]
[342066821,1731397876215,-5244.09,0.00014999,2]
[342066822,1731397876225,-2649.32,0.00014999,2]
[342066823,1731397876234,-5244.09,0.00014999,2]
[342066824,1731397876243,-2649.32,0.00014999,2]
[342066825,1731397876253,-5244.09,0.00014999,2]
[342066826,1731397876266,-2649.32,0.00014999,2]
[342066827,1731397876275,-5244.14514197,0.00014999,2]
[342066828,1731397876284,-2649.32,0.00014999,2]
[342066829,1731397876294,-2649.32,0.00014999,2]
[342066830,1731397876303,-2649.32,0.00014999,2]
[342066831,1731397876312,-2649.32,0.00014999,2]
[342066832,1731397876321,-2649.32,0.00014999,2]
[342066833,1731397876331,-2649.32,0.00014999,2]
[342066834,1731397876341,-2649.40843621,0.00014999,2]
[342066835,1731397876351,-2406.7,0.00014999,2]
[342066836,1731397876362,-2406.7,0.00014999,2]
[342066837,1731397876371,-856.06,0.00014999,2]
[342066838,1731397876381,-2406.7,0.00014999,2]
[342066839,1731397876391,-2406.7,0.00014999,2]
[342066840,1731397876400,-2406.7,0.00014999,2]
[342066841,1731397876410,-856.06,0.00014999,2]
[342066842,1731397876419,-2406.7,0.00014999,2]
[342066843,1731397876427,-856.06,0.00014999,2]
[342066844,1731397876437,-2406.7,0.00014999,2]
[342066845,1731397876446,-856.06,0.00014999,2]
[342066846,1731397876456,-2406.7,0.00014999,2]
[342066847,1731397876465,-856.06,0.00014999,2]
[342066848,1731397876474,-2406.7,0.00014999,2]
[342066849,1731397876484,-856.06,0.00014999,2]
[342066850,1731397876493,-2406.7,0.00014999,2]
[342066851,1731397876503,-856.06,0.00014999,2]
[342066852,1731397876512,-2406.71357813,0.00014999,2]
[342066853,1731397876522,-856.06,0.00014999,2]
[342066854,1731397876531,-856.06,0.00014999,2]
[342066855,1731397876539,-856.06,0.00014999,2]
[342066856,1731397876546,-856.06,0.00014999,2]
[342066857,1731397876556,-856.06,0.00014999,2]
[342066858,1731397876566,-856.06,0.00014999,2]
[342066859,1731397876576,-856.06,0.00014999,2]
[342066860,1731397876586,-856.16313879,0.00014999,2]
[342066861,1731397876596,-760.9,0.00014999,2]
[342066862,1731397876606,-760.9,0.00014999,2]
[342066863,1731397876618,-760.9,0.00014999,2]
[342066864,1731397876628,-760.9,0.00014999,2]
[342066865,1731397876637,-760.9,0.00014999,2]
[342066866,1731397876647,-760.9,0.00014999,2]
[342066867,1731397876657,-760.9,0.00014999,2]
[342066868,1731397876666,-760.9,0.00014999,2]
[342066869,1731397876675,-760.9,0.00014999,2]
[342066870,1731397876685,-760.9,0.00014999,2]
[342066871,1731397876694,-760.9175395,0.00014999,2]
[342066872,1731397876703,-500.0,0.00014999,2]
[342066873,1731397876713,-500.0,0.00014999,2]
[342066874,1731397876722,-199.02530461,0.00014999,2]
[342066875,1731397876731,-1609.78,0.00014999,2]
[342066876,1731397876741,-1609.78,0.00014999,2]
[342066877,1731397876749,-1609.78,0.00014999,2]
[342066878,1731397876759,-1609.78,0.00014999,2]
[342066879,1731397876768,-1609.78,0.00014999,2]
[342066880,1731397876777,-1609.78,0.00014999,2]
[342066881,1731397876787,-1609.78,0.00014999,2]
[342066882,1731397876796,-1609.78,0.00014999,2]
[342066883,1731397876807,-1609.78,0.00014999,2]
[342066884,1731397876817,-1609.78,0.00014999,2]
[342066885,1731397876827,-1609.92728256,0.00014999,2]
[342066886,1731397876836,-2977.14,0.00014999,2]
[342066887,1731397876845,-2977.14,0.00014999,2]
[342066888,1731397876855,-5929.72,0.00014999,2]
[342066889,1731397876867,-2977.14,0.00014999,2]
[342066890,1731397876876,-5929.72,0.00014999,2]
[342066891,1731397876886,-2977.14,0.00014999,2]
[342066892,1731397876895,-2977.14,0.00014999,2]
[342066893,1731397876905,-5929.72,0.00014999,2]
[342066894,1731397876915,-5929.72,0.00014999,2]
[342066895,1731397876924,-2977.14,0.00014999,2]
[342066896,1731397876933,-5929.72,0.00014999,2]
[342066897,1731397876943,-2977.14,0.00014999,2]
[342066898,1731397876952,-5929.72,0.00014999,2]
[342066899,1731397876961,-2977.14,0.00014999,2]
[342066900,1731397876971,-2977.14,0.00014999,2]
[342066901,1731397876980,-2977.14,0.00014999,2]
[342066902,1731397876990,-5929.72,0.00014999,2]
[342066903,1731397876999,-2977.24225208,0.00014999,2]
[342066904,1731397877009,-5929.72,0.00014999,2]
[342066905,1731397877018,-5929.72,0.00014999,2]
[342066906,1731397877027,-5929.72,0.00014999,2]
[342066907,1731397877036,-5929.72,0.00014999,2]
[342066908,1731397877046,-5929.72,0.00014999,2]
[342066909,1731397877056,-5929.72,0.00014999,2]
[342066910,1731397877066,-5929.72,0.00014999,2]
[342066911,1731397877075,-5929.93540383,0.00014999,2]
[342066912,1731397877085,-2110.51,0.00014999,2]
[342066913,1731397877094,-2110.51,0.00014999,2]
[342066914,1731397877104,-2110.51,0.00014999,2]
[342066915,1731397877114,-2110.51,0.00014999,2]
[342066916,1731397877124,-2110.51,0.00014999,2]
[342066917,1731397877133,-2110.51,0.00014999,2]
[342066918,1731397877145,-2110.51,0.00014999,2]
[342066919,1731397877155,-2110.51,0.00014999,2]
[342066920,1731397877165,-2110.51,0.00014999,2]
[342066921,1731397877174,-2110.51,0.00014999,2]
[342066922,1731397877184,-2110.72164634,0.00014999,2]
[342066923,1731397877193,-2094.83,0.00014999,2]
[342066924,1731397877202,-2094.83,0.00014999,2]
[342066925,1731397877212,-2094.83,0.00014999,2]
[342066926,1731397877221,-2094.83,0.00014999,2]
[342066927,1731397877230,-2094.83,0.00014999,2]
[342066928,1731397877239,-2094.83,0.00014999,2]
[342066929,1731397877249,-2094.83,0.00014999,2]
[342066930,1731397877264,-2094.83,0.00014999,2]
[342066931,1731397877274,-2094.83,0.00014999,2]
[342066932,1731397877284,-2094.83,0.00014999,2]
[342066933,1731397877294,-2095.00881491,0.00014999,2]
[342066934,1731397877303,-2179.63,0.00014999,2]
[342066935,1731397877314,-2179.63,0.00014999,2]
[342066936,1731397877323,-2179.63,0.00014999,2]
[342066937,1731397877333,-2179.63,0.00014999,2]
[342066938,1731397877343,-3395.63,0.00014999,2]
[342066939,1731397877353,-3395.63,0.00014999,2]
[342066940,1731397877364,-2179.63,0.00014999,2]
[342066941,1731397877374,-3395.63,0.00014999,2]
[342066942,1731397877383,-2179.63,0.00014999,2]
[342066943,1731397877393,-3395.63,0.00014999,2]
[342066944,1731397877403,-2179.63,0.00014999,2]
[342066945,1731397877413,-3395.63,0.00014999,2]
[342066946,1731397877423,-2179.63,0.00014999,2]
[342066947,1731397877432,-2179.63,0.00014999,2]
[342066948,1731397877442,-2179.63,0.00014999,2]
[342066949,1731397877452,-3395.63,0.00014999,2]
[342066950,1731397877462,-3395.63,0.00014999,2]
[342066951,1731397877472,-2179.66,0.00014999,2]
[342066952,1731397877481,-3395.63,0.00014999,2]
[342066953,1731397877490,-3395.63,0.00014999,2]
[342066954,1731397877499,-3395.63,0.00014999,2]
[342066955,1731397877509,-3395.63,0.00014999,2]
[342066956,1731397877518,-3395.63,0.00014999,2]
[342066957,1731397877528,-3395.63,0.00014999,2]
[342066958,1731397877538,-3395.63,0.00014999,2]
[342066959,1731397877547,-3395.73712148,0.00014999,2]
[342066960,1731397877557,-500.0,0.00014999,2]
[342066961,1731397877567,-500.0,0.00014999,2]
[342066962,1731397877576,-500.0,0.00014999,2]
[342066963,1731397877586,-500.0,0.00014999,2]
[342066964,1731397877596,-500.0,0.00014999,2]
[342066965,1731397877611,-500.0,0.00014999,2]
[342066966,1731397877620,-500.0,0.00014999,2]
[342066967,1731397877629,-500.0,0.00014999,2]
[342066968,1731397877639,-500.0,0.00014999,2]
[342066969,1731397877648,-500.0,0.00014999,2]
[342066970,1731397877657,-2808.91,0.00014999,2]
[342066971,1731397877666,-154.78745639,0.00014999,2]
[342066972,1731397877676,-2808.91,0.00014999,2]
[342066973,1731397877685,-2808.91,0.00014999,2]
[342066974,1731397877695,-2808.91,0.00014999,2]
[342066975,1731397877705,-2808.91,0.00014999,2]
[342066976,1731397877715,-2808.91,0.00014999,2]
[342066977,1731397877724,-2808.91,0.00014999,2]
[342066978,1731397877734,-2808.91,0.00014999,2]
[342066979,1731397877744,-2808.91,0.00014999,2]
[342066980,1731397877753,-2808.91,0.00014999,2]
[342066981,1731397877763,-2808.91,0.00014999,2]
[342066982,1731397877772,-2808.91,0.00014999,2]
[342066983,1731397877782,-2808.91,0.00014999,2]
[342066984,1731397877791,-2808.91,0.00014999,2]
[342066985,1731397877801,-2809.0475117,0.00014999,2]
[342066986,1731397877810,-3120.77,0.00014999,2]
[342066987,1731397877820,-3120.77,0.00014999,2]
[342066988,1731397877829,-2157.79,0.00014999,2]
[342066989,1731397877838,-3120.77,0.00014999,2]
[342066990,1731397877847,-2157.79,0.00014999,2]
[342066991,1731397877857,-3120.77,0.00014999,2]
[342066992,1731397877867,-2157.79,0.00014999,2]
[342066993,1731397877877,-3120.77,0.00014999,2]
[342066994,1731397877887,-2157.79,0.00014999,2]
[342066995,1731397877896,-3120.77,0.00014999,2]
[342066996,1731397877905,-3120.77,0.00014999,2]
[342066997,1731397877914,-2157.79,0.00014999,2]
[342066998,1731397877923,-2157.79,0.00014999,2]
[342066999,1731397877933,-3120.77,0.00014999,2]
[342067000,1731397877943,-2157.79,0.00014999,2]
[342067001,1731397877952,-3120.77,0.00014999,2]
[342067002,1731397877961,-2157.79,0.00014999,2]
[342067003,1731397877971,-3120.77,0.00014999,2]
[342067004,1731397877980,-2157.79,0.00014999,2]
[342067005,1731397877990,-3120.85432368,0.00014999,2]
[342067006,1731397878000,-2157.79,0.00014999,2]
[342067007,1731397878010,-2157.79,0.00014999,2]
[342067008,1731397878019,-2157.79,0.00014999,2]
[342067009,1731397878029,-2157.79,0.00014999,2]
[342067010,1731397878039,-2157.79,0.00014999,2]
[342067011,1731397878049,-2157.86026411,0.00014999,2]
[342067012,1731397878058,-1646.54,0.00014999,2]
[342067013,1731397878067,-1646.54,0.00014999,2]
[342067014,1731397878077,-1646.54,0.00014999,2]
[342067015,1731397878086,-1646.54,0.00014999,2]
[342067016,1731397878096,-1646.54,0.00014999,2]
[342067017,1731397878106,-1646.54,0.00014999,2]
[342067018,1731397878116,-1646.54,0.00014999,2]
[342067019,1731397878126,-1646.54,0.00014999,2]
[342067020,1731397878136,-500.0,0.00014999,2]
[342067021,1731397878145,-1646.54,0.00014999,2]
[342067022,1731397878155,-500.0,0.00014999,2]
[342067023,1731397878164,-1646.54,0.00014999,2]
[342067024,1731397878174,-500.0,0.00014999,2]
[342067025,1731397878183,-1646.74149067,0.00014999,2]
[342067026,1731397878193,-500.0,0.00014999,2]
[342067027,1731397878203,-502.59626371,0.00014999,2]
[342067028,1731397878212,-930.07,0.00014999,2]
[342067029,1731397878222,-930.07,0.00014999,2]
[342067030,1731397878233,-930.07,0.00014999,2]
[342067031,1731397878243,-930.07,0.00014999,2]
[342067032,1731397878253,-500.0,0.00014999,2]
[342067033,1731397878266,-930.07,0.00014999,2]
[342067034,1731397878277,-498.69858557,0.00014999,2]
[342067035,1731397878287,-930.07,0.00014999,2]
[342067036,1731397878297,-930.07,0.00014999,2]
[342067037,1731397878310,-930.07,0.00014999,2]
[342067038,1731397878321,-930.07,0.00014999,2]
[342067039,1731397878332,-930.07,0.00014999,2]
[342067040,1731397878344,-930.27304966,0.00014999,2]
[342067041,1731397878355,-1179.65,0.00014999,2]
[342067042,1731397878368,-1179.65,0.00014999,2]
[342067043,1731397878378,-1179.65,0.00014999,2]
[342067044,1731397878389,-1179.65,0.00014999,2]
[342067045,1731397878399,-1179.65,0.00014999,2]
[342067046,1731397878409,-1179.65,0.00014999,2]
[342067047,1731397878419,-1179.65,0.00014999,2]
[342067048,1731397878428,-1179.65,0.00014999,2]
[342067049,1731397878438,-1179.65,0.00014999,2]
[342067050,1731397878448,-1179.65,0.00014999,2]
[342067051,1731397878458,-1179.77177846,0.00014999,2]
[342067052,1731397878468,-622.72,0.00014999,2]
[342067053,1731397878478,-622.72,0.00014999,2]
[342067054,1731397878488,-622.72,0.00014999,2]
[342067055,1731397878497,-622.72,0.00014999,2]
[342067056,1731397878508,-622.72,0.00014999,2]
[342067057,1731397878517,-622.72,0.00014999,2]
[342067058,1731397878527,-622.72,0.00014999,2]
[342067059,1731397878537,-622.72,0.00014999,2]
[342067060,1731397878547,-622.72,0.00014999,2]
[342067061,1731397878556,-622.72,0.00014999,2]
[342067062,1731397878566,-622.90183093,0.00014999,2]
[342067063,1731397878577,-500.0,0.00014999,2]
[342067064,1731397878587,-500.0,0.00014999,2]
[342067065,1731397878597,-500.0,0.00014999,2]
[342067066,1731397878607,-500.0,0.00014999,2]
[342067067,1731397878620,-350.26475934,0.00014999,2]
[342067068,1731397878630,-12296.58602502,0.00015,2]
[342067069,1731397878640,-260546.74469322,0.00015,2]
[342067070,1731397878650,-1533796.21963203,0.00015,2]
[342067071,1731397878660,-400.03756406,0.00015,2]
[342067072,1731397878669,-820314.7705643,0.00015,2]
[342067073,1731397878679,-6834310.25328788,0.00015,2]
[342067074,1731397878689,-1252785.85635206,0.00015,2]
[342067075,1731397878698,-7451812.42349917,0.00015,2]
[342067076,1731397879136,-5804.59803058,0.00015,2]
[342067077,1731397879148,-15137.40622736,0.00015,2]
[342067078,1731397879159,-60599.99999534,0.00015,2]
[342067079,1731397879171,-50326.76179027,0.00015,2]
[342067080,1731397879182,-89417.99999999,0.00015,2]
[342067081,1731397879487,-500.0,0.00013698,2]
[342067082,1731397879497,-500.0,0.00013698,2]
[342067083,1731397879507,-500.0,0.00013698,2]
[342067084,1731397879516,-500.0,0.00013698,2]
[342067085,1731397879525,-166.6892351,0.00013698,2]
[342067086,1731397879534,-332.60004237,0.00013698,2]
[342067087,1731397879543,-500.0,0.00014876,2]
[342067088,1731397879554,-526.76,0.00014889,2]
[342067089,1731397879563,-289.65842253,0.00015,2]
[342067090,1731397879574,-1547.61,0.00015,2]
[342067091,1731397879589,-6074.05282846,0.00015,2]
[342067092,1731397879600,-17170.04,0.00015,2]
[342067093,1731397879647,-12921.16813474,0.00015,2]
[342067094,1731397879662,-6231.19079209,0.00015,2]
[342067095,1731397879731,-1091.0,0.00013908,2]
[342067096,1731397879741,-58596.40512954,0.00015,2]
[342067097,1731397879752,-268.16258313,0.00015,2]
[342067098,1731397879764,-369.85178351,0.00015,2]
[342067099,1731397879775,-312.3160075,0.00015,2]
[342067100,1731397879786,-681.26488617,0.00015,2]
[342067101,1731397879797,-253.44497898,0.00015,2]
[342067102,1731397879809,-556.86577081,0.00015,2]
[342067103,1731397879820,-381.00699236,0.00015,2]
[342067104,1731397879832,-17865.19873966,0.00015,2]
[342067105,1731397879843,-640.75,0.00015,2]
[342067106,1731397879854,-743.65,0.00015,2]
[342067107,1731397879867,-509.3064,0.00015,2]
[342067108,1731397879878,-384.644286,0.00015,2]
[342067109,1731397879889,-3000.0,0.00015,2]
[342067110,1731397879900,-50575.59207414,0.00015,2]
[342067111,1731397879911,-403.3770056,0.00015,2]
[342067112,1731397880110,-500.0,0.00013698,2]
[342067113,1731397880119,-418.64722073,0.00013698,2]
[342067114,1731397880129,-13340.86634953,0.00014791,2]
[342067115,1731397880138,-3612.08642974,0.00015,2]
[342067116,1731397880149,-4034.85145226,0.00015,2]
[342067117,1731397880160,-419.63774487,0.00015,2]
[342067118,1731397880171,-5492.48880893,0.00015,2]
[342067119,1731397880193,-3371.08601784,0.00015,2]
[342067120,1731397880204,-828.6711612,0.00015,2]
[342067121,1731397880215,-766.51784084,0.00015,2]
[342067122,1731397880225,-2602.19999985,0.00015,2]
[342067123,1731397880237,-14201.23603273,0.00015,2]
[342067124,1731397880248,-1603.45691161,0.00015,2]
[342067125,1731397880273,-2337.72239091,0.00015,2]
[342067126,1731397880284,-1023.02796118,0.00015,2]
[342067127,1731397880295,-6040.0,0.00015,2]
[342067128,1731397880315,-478.85914579,0.00015,2]
[342067129,1731397880327,-8343.37135943,0.00015,2]
[342067130,1731397880341,-2151.55353911,0.00015,2]
[342067131,1731397880364,-1968.40098272,0.00015,2]
[342067132,1731397880375,-627.59413878,0.00015,2]
[342067133,1731397880386,-2519.36597863,0.00015,2]
[342067134,1731397880601,-500.0,0.00013698,2]
[342067135,1731397880612,-500.0,0.00013698,2]
[342067136,1731397880621,-500.0,0.00013698,2]
[342067137,1731397880631,-500.0,0.00013698,2]
[342067138,1731397880640,-500.0,0.00013698,2]
[342067139,1731397880650,-500.0,0.00013742,2]
[342067140,1731397880659,-500.0,0.00014755,2]
[342067141,1731397880668,-500.0,0.00014786,2]
[342067142,1731397880677,-500.0,0.00014889,2]
[342067143,1731397880686,-8454.43518019,0.00015,2]
[342067144,1731397880697,-414.36,0.00015,2]
[342067145,1731397880708,-259.47095592,0.00015,2]
[342067146,1731397880719,-33616.50000005,0.00015,2]
[342067147,1731397880730,-3185.0733,0.00015,2]
[342067148,1731397880874,-1482.09636,0.00015,2]
[342067149,1731397880891,-26120.92730361,0.00015,2]
[342067150,1731397880902,-101605.0,0.00015,2]
[342067151,1731397880913,-1151.18,0.00015,2]
[342067152,1731397880923,-444.67432005,0.00015,2]
[342067153,1731397881053,-500.0,0.00014919,2]
[342067154,1731397881063,-198.68390561,0.00015,2]
[342067155,1731397881074,-463.53266,0.00015,2]
[342067156,1731397881085,-749.10438779,0.00015,2]
[342067157,1731397882536,1539.49,0.00011166,2]
[342067158,1731397883130,1855.12440092,0.00012,2]
[342067163,1731398068483,165.64,8.219e-05,2]
[342067186,1731398371840,338.89,0.00025,120]
[342067187,1731398466538,500.0,0.00021,30]
[342067188,1731398466974,500.0,0.00021,30]
[342067189,1731398467431,500.0,0.00021,30]
[342067190,1731398467856,500.0,0.00021,30]
[342067191,1731398468278,500.0,0.00021,30]
[342067192,1731398468717,500.0,0.00021,30]
[342067193,1731398469148,500.0,0.00021,30]
[342067194,1731398469600,500.0,0.00021,30]
[342067195,1731398470048,500.0,0.00021,30]
[342067196,1731398470560,500.0,0.00021,30]
[342067197,1731398470987,500.0,0.00021,30]
[342067198,1731398471536,500.0,0.00021,30]
[342067199,1731398472011,500.0,0.00021,30]
[342067200,1731398472466,500.0,0.00021,30]
[342067201,1731398473032,500.0,0.00021,30]
[342067202,1731398473488,500.0,0.00021,30]
[342067203,1731398473933,500.0,0.00021,30]
[342067204,1731398474359,500.0,0.00021,30]
[342067205,1731398474785,500.0,0.00021,30]
[342067206,1731398475229,500.0,0.00021,30]
[342067207,1731398475661,500.0,0.00021,30]
[342067208,1731398476074,500.0,0.00021,30]
[342067209,1731398476532,500.0,0.00021,30]
[342067210,1731398476994,500.0,0.00021,30]
[342067211,1731398477416,500.0,0.00021,30]
[342067212,1731398477886,500.0,0.00021,30]
[342067213,1731398478313,500.0,0.00021,30]
[342067214,1731398478813,500.0,0.00021,30]
[342067215,1731398479255,500.0,0.00021,30]
[342067216,1731398479720,500.0,0.00021,30]
[342067217,1731398480195,500.0,0.00021,30]
[342067218,1731398480891,500.0,0.00021,30]
[342067219,1731398481063,500.0,0.00021,30]
[342067220,1731398481523,500.0,0.00021,30]
[342067221,1731398481984,500.0,0.00021,30]
[342067222,1731398482423,500.0,0.00021,30]
[342067223,1731398482859,500.0,0.00021,30]
[342067224,1731398483292,500.0,0.00021,30]
[342067225,1731398486611,500.0,0.00021,30]
[342067226,1731398487075,500.0,0.00021,30]
[342067227,1731398487504,500.0,0.00021,30]
[342067228,1731398487971,500.0,0.00021,30]
[342067229,1731398488442,500.0,0.00021,30]
[342067230,1731398488875,431.25653412,0.00021,30]
[342067234,1731398681310,2734.38687102,0.00012484,2]
[342067235,1731398686692,23900.0,0.00012483,2]
[342067237,1731398737251,451.38,0.00012482,2]
[342067238,1731398769334,480.03,0.00012439,2]
[342067239,1731398769735,480.03,0.00012445,2]
[342067240,1731398769782,480.03,0.00012452,2]
[342067241,1731398769967,480.03,0.00012458,2]